bitfinex-derivatives/quotes_ETHF0:USTF0_20260207
["timestamp","ask_amount","ask_price","bid_price","bid_amount"]
[1770477889078,7.2126172,2048.9,2047.8,11.72330231]
[1770477889278,18.87204448,2049.1,2047.8,11.72330231]
[1770477889580,11.65942728,2049.1,2047.8,11.72330231]
[1770477889975,7.2126172,2049.3,2047.8,11.72330231]
[1770477890272,11.65942728,2049.3,2047.9,11.72330231]
[1770477891081,11.65942728,2049.2,2047.9,11.72330231]
[1770477891480,0.00437235,2049.4,2047.9,14.57835666]
[1770477891981,11.66379963,2049.4,2047.9,14.57835666]
[1770477892176,0.00437235,2049.4,2048.1,14.57835666]
[1770477892484,0.00437235,2049.4,2048.3,11.72330231]
[1770477892783,11.66379963,2049.4,2048.3,11.72330231]
[1770477893380,0.00437235,2049.4,2048.3,11.72330231]
[1770477893780,11.66379963,2049.4,2048.3,11.72330231]
[1770477894477,11.66379963,2049.4,2047.9,2.85505435]
[1770477894681,4.17856926,2048.6,2047.4,11.72330231]
[1770477894880,3.93423926,2048.5,2047.4,11.72330231]
[1770477895083,3.93423926,2048.8,2047.4,11.72330231]
[1770477895690,3.93423926,2048.8,2047.4,11.72840975]
[1770477895891,3.93423926,2048.7,2047.4,11.72840975]
[1770477896289,3.93423926,2048.6,2047.4,11.72840975]
[1770477896583,3.93423926,2048.5,2047.4,11.72840975]
[1770477897793,5.83953178,2048.8,2047.4,11.72840975]
[1770477897989,9.44997539,2048.8,2047.4,11.72840975]
[1770477898288,3.61044361,2048.8,2047.4,11.72840975]
[1770477898682,3.3635727,2048.7,2047.4,11.72840975]
[1770477899685,3.3635727,2048.8,2047.4,11.72840975]
[1770477901087,3.42776168,2048.4,2047.4,11.72840975]
[1770477901389,3.42776168,2048.2,2047.4,11.72840975]
[1770477901580,3.42776168,2048.2,2047.4,0.00510744]
[1770477901782,3.42776168,2048.0,2046.8,11.72330231]
[1770477901986,3.42776168,2047.9,2046.8,11.72330231]
[1770477902485,2.00429661,2047.3,2045.6,0.24468]
[1770477902686,3.40190638,2047.2,2046.1,11.72330231]
[1770477903287,3.64640638,2047.2,2045.9,11.72330231]
[1770477903483,3.40190638,2046.8,2045.9,11.72330231]
[1770477903684,3.40190638,2046.8,2045.6,0.00599126]
[1770477903885,3.40190638,2046.6,2045.6,11.72929357]
[1770477904988,3.40190638,2046.6,2045.6,0.00599126]
[1770477905396,3.40190638,2046.6,2045.6,11.72929357]
[1770477907186,2.00429661,2046.8,2045.6,11.72929357]
[1770477907384,3.33247982,2046.9,2045.6,11.72929357]
[1770477908707,3.10612756,2046.9,2045.6,11.72929357]
[1770477909093,3.10612756,2046.6,2045.6,11.72929357]
[1770477909586,2.24884661,2046.8,2045.6,10.74730048]
[1770477909787,3.10612756,2046.7,2045.6,10.74730048]
[1770477910897,5.10166127,2046.4,2045.6,10.74730048]
[1770477911091,3.09736466,2046.4,2045.6,10.74730048]
[1770477911296,3.09736466,2046.1,2045.3,10.75012283]
[1770477911597,3.09736466,2046.3,2045.3,10.75012283]
[1770477912395,3.09736466,2046.3,2045.3,10.75637773]
[1770477913394,11.20336466,2046.3,2045.3,10.75637773]
[1770477913600,3.13866371,2046.2,2045.3,10.75637773]
[1770477914403,3.13808828,2046.3,2045.3,10.75637773]
[1770477915499,3.13808828,2046.9,2045.3,10.75637773]
[1770477918205,3.21813231,2047.1,2045.3,11.00109773]
[1770477918414,3.22429106,2047.3,2045.7,10.75012283]
[1770477919202,0.00615875,2047.3,2045.7,10.75012283]
[1770477920011,3.22017004,2047.3,2045.7,10.75012283]
[1770477920207,0.00615875,2047.3,2045.7,10.99479283]
[1770477920705,0.00615875,2047.3,2045.9,10.75012283]
[1770477921411,0.00615875,2047.3,2046.1,10.75012283]
[1770477921613,3.14311362,2047.9,2046.1,10.99474283]
[1770477921807,5.15356898,2048.2,2046.4,10.75012283]
[1770477922506,5.15942072,2048.2,2046.4,10.75012283]
[1770477922704,0.00585174,2048.2,2046.6,10.99468283]
[1770477923115,4.89340317,2047.7,2046.6,10.75012283]
[1770477923409,2.88910656,2047.6,2046.6,10.75012283]
[1770477925612,2.65207228,2047.2,2046.3,10.75012283]
[1770477927418,2.00951153,2046.4,2045.4,10.75012283]
[1770477927616,2.01528149,2046.4,2045.4,10.75012283]
[1770477928913,5.83953178,2046.8,2045.4,10.75012283]
[1770477929216,2.00951153,2047.0,2045.6,10.75012283]
[1770477930018,2.0155868,2047.0,2045.6,10.75012283]
[1770477930515,0.00607527,2047.0,2045.6,10.75012283]
[1770477932319,4.98672657,2046.7,2045.6,10.75012283]
[1770477932519,2.00951153,2046.4,2045.6,10.75012283]
[1770477932717,5.83953178,2046.9,2045.6,10.75012283]
[1770477932918,0.01607527,2047.0,2045.6,10.75012283]
[1770477933109,5.85560705,2047.0,2045.6,10.75012283]
[1770477933314,5.85560705,2047.0,2045.6,10.99480283]
[1770477933315,0.01607527,2047.0,2045.6,10.99480283]
[1770477933516,0.01607527,2047.0,2045.9,10.75012283]
[1770477935220,5.83953178,2047.4,2045.9,10.75012283]
[1770477936226,5.84519525,2047.4,2045.9,10.75012283]
[1770477937221,2.90401169,2047.2,2045.9,10.75012283]
[1770477937423,5.84519525,2047.4,2045.9,10.75012283]
[1770477937821,0.00566347,2047.4,2045.9,10.75012283]
[1770477938627,0.00566347,2047.4,2045.9,10.99476283]
[1770477938828,2.00951153,2047.6,2045.9,10.99476283]
[1770477939029,0.00572267,2047.4,2045.9,10.99476283]
[1770477939528,2.00951153,2047.6,2045.9,10.99476283]
[1770477939728,2.01297606,2047.6,2045.9,10.99476283]
[1770477940427,4.08026216,2047.3,2045.9,10.99476283]
[1770477940632,2.07075063,2047.2,2045.9,10.99476283]
[1770477941320,2.00951153,2046.3,2045.9,10.75012283]
[1770477941525,2.00951153,2046.3,2045.4,11.52281277]
[1770477942430,2.00951153,2046.3,2045.3,0.0062549]
[1770477942431,13.15368761,2046.0,2045.3,0.0062549]
[1770477942622,13.15870177,2046.0,2045.3,0.0062549]
[1770477945832,11.14417608,2045.6,2044.9,11.52281277]
[1770477946237,11.14417608,2045.6,2044.5,11.8324154]
[1770477946429,16.98370786,2045.9,2044.5,11.8324154]
[1770477946628,0.00501416,2046.0,2044.7,11.52281277]
[1770477946837,0.00501416,2046.0,2044.7,11.52900559]
[1770477947331,13.15870177,2046.0,2044.7,11.52900559]
[1770477950237,11.14417608,2045.6,2044.7,11.52900559]
[1770477950436,13.15368761,2045.4,2044.7,11.52900559]
[1770477950739,11.14417608,2045.4,2044.7,11.52900559]
[1770477951336,13.15368761,2045.7,2044.7,11.52900559]
[1770477951541,11.14417608,2045.7,2044.7,11.52900559]
[1770477953238,11.14417608,2045.9,2044.7,11.52900559]
[1770477954638,0.00572267,2045.8,2044.7,11.52900559]
[1770477955239,11.14417608,2045.8,2044.7,11.52900559]
[1770477955445,13.15870177,2046.0,2044.7,11.52900559]
[1770477956653,11.14417608,2045.7,2044.7,11.52900559]
[1770477958256,13.15368761,2045.5,2044.7,11.52900559]
[1770477958949,13.15368761,2045.5,2044.7,0.00619282]
[1770477960552,11.14417608,2045.1,2044.5,11.52281277]
[1770477960753,11.14417608,2045.7,2044.5,11.52281277]
[1770477961655,11.14417608,2045.7,2044.5,11.52898255]
[1770477962258,11.14417608,2046.3,2045.1,11.52281277]
[1770477962453,11.14417608,2046.3,2045.0,2.00951153]
[1770477962454,11.14417608,2046.7,2045.3,11.52281277]
[1770477962756,11.14417608,2046.3,2045.3,11.52281277]
[1770477963148,11.14417608,2046.5,2045.3,11.52281277]
[1770477963556,11.14771693,2046.5,2045.3,11.52281277]
[1770477964555,0.00354085,2046.5,2045.3,11.52281277]
[1770477964755,11.14417608,2047.1,2045.6,13.5323243]
[1770477964956,11.14417608,2047.4,2046.0,11.52281277]
[1770477965658,7.84904331,2047.6,2046.3,11.52281277]
[1770477965659,11.14417608,2047.6,2046.3,11.52281277]
[1770477965858,0.00435861,2047.4,2046.3,11.52281277]
[1770477966557,11.19354343,2048.1,2046.6,11.18160649]
[1770477966862,8.72381659,2048.6,2046.4,0.24458]
[1770477966863,11.19354343,2047.9,2046.9,11.18160649]
[1770477967458,11.19354343,2048.2,2046.9,11.18160649]
[1770477967755,11.19798061,2048.2,2046.9,11.18160649]
[1770477968559,0.00443718,2048.2,2046.9,11.18160649]
[1770477970268,11.19798061,2048.2,2046.9,11.18160649]
[1770477972163,13.20749214,2048.2,2046.9,11.18160649]
[1770477972358,11.2956565,2047.5,2046.2,11.82625269]
[1770477972562,11.2956565,2047.7,2046.2,13.83576422]
[1770477972763,11.2956565,2047.7,2046.2,11.82625269]
[1770477974667,11.2956565,2048.1,2046.9,11.82625269]
[1770477974870,11.2956565,2047.9,2046.9,11.82625269]
[1770477975272,11.2956565,2047.6,2046.7,11.82625269]
[1770477976574,11.2956565,2047.4,2046.7,11.82625269]
[1770477977371,11.2956565,2047.4,2046.1,11.82625269]
[1770477979769,11.2956565,2047.1,2046.1,11.82625269]
[1770477981068,11.2956565,2047.3,2046.1,11.82625269]
[1770477982366,13.30516803,2047.5,2046.1,11.82625269]
[1770477982769,11.2956565,2047.5,2046.2,2.00951153]
[1770477982971,11.2956565,2047.7,2046.3,11.82625269]
[1770477983880,11.2956565,2047.7,2046.3,12.07084269]
[1770477984880,13.30516803,2047.5,2046.3,12.07084269]
[1770477985379,13.30516803,2047.5,2046.3,11.82625269]
[1770477986374,11.2956565,2047.1,2046.3,11.82625269]
[1770477987083,11.2956565,2047.1,2046.1,11.82625269]
[1770477987482,11.2956565,2046.8,2046.0,0.00423609]
[1770477988082,2.00879168,2046.2,2044.8,11.82625269]
[1770477988279,11.2956565,2046.1,2044.8,11.82625269]
[1770477988982,11.2956565,2046.1,2044.8,11.83167712]
[1770477988983,11.30028783,2046.1,2044.8,11.83167712]
[1770477989382,11.2956565,2045.7,2044.8,0.00542443]
[1770477989878,11.2956565,2045.7,2044.3,11.82625269]
[1770477991078,11.2956565,2045.7,2044.3,11.83202887]
[1770477994084,11.2956565,2045.7,2044.5,11.82625269]
[1770477994490,11.2956565,2046.0,2044.7,11.82625269]
[1770477994989,0.00463133,2046.1,2044.9,11.82625269]
[1770477995188,0.00463133,2046.1,2044.9,12.07101269]
[1770477998991,11.45301246,2046.1,2044.9,11.82625269]
[1770478000594,11.4541038,2045.5,2044.9,11.82625269]
[1770478000982,11.44838113,2045.5,2044.9,11.82625269]
[1770478001594,11.44838113,2045.5,2044.4,11.62684188]
[1770478005089,11.44838113,2045.5,2044.3,0.00577618]
[1770478006097,11.44838113,2045.5,2044.3,11.63261806]
[1770478008600,11.44838113,2046.0,2044.5,11.62684188]
[1770478011895,7.4571872,2046.6,2045.1,11.87158188]
[1770478011896,11.44838113,2046.6,2045.1,11.87158188]
[1770478013000,11.45276142,2046.6,2045.2,0.24473]
[1770478013200,11.45276142,2046.6,2045.1,11.62684188]
[1770478013201,11.45276142,2046.6,2045.3,11.87156188]
[1770478013604,11.44838113,2046.9,2045.5,13.63563356]
[1770478013803,11.44838113,2046.9,2045.4,2.00879168]
[1770478013804,11.44838113,2046.9,2045.8,11.62684188]
[1770478014705,11.4541038,2046.3,2045.8,11.63315354]
[1770478014904,11.45235457,2046.9,2045.8,11.63315354]
[1770478015499,0.00397344,2046.9,2045.8,11.87781354]
[1770478015706,11.44838113,2047.3,2046.0,11.62684188]
[1770478016794,11.45312448,2047.3,2046.0,11.62684188]
[1770478023498,11.44838113,2046.9,2045.8,0.00631166]
[1770478023701,11.44838113,2046.9,2045.3,11.62684188]
[1770478023998,11.44838113,2046.8,2045.3,11.62684188]
[1770478024409,11.44838113,2046.7,2045.3,11.62684188]
[1770478024911,11.44838113,2046.7,2045.3,11.6328793]
[1770478025205,11.44838113,2046.5,2045.3,11.6328793]
[1770478025507,11.44838113,2046.1,2045.3,0.00603742]
[1770478025709,11.44838113,2046.1,2045.3,11.6328793]
[1770478026104,11.44838113,2046.1,2045.3,0.00603742]
[1770478026302,11.44838113,2046.1,2044.9,10.57569409]
[1770478026499,11.44838113,2046.1,2044.7,10.57569409]
[1770478026911,10.16047312,2045.9,2044.7,10.57569409]
[1770478027411,10.16047312,2045.9,2044.7,10.58162569]
[1770478028707,10.16047312,2045.9,2044.7,0.0059316]
[1770478029013,10.16047312,2045.5,2044.4,10.57569409]
[1770478029203,10.16047312,2045.5,2044.1,10.57569409]
[1770478029606,0.00572267,2044.5,2044.1,10.57569409]
[1770478029911,0.01042489,2044.5,2044.1,10.58013885]
[1770478030416,0.00470222,2044.5,2044.1,10.58013885]
[1770478031415,5.83953178,2045.5,2044.1,10.58013885]
[1770478031416,10.09704564,2045.5,2044.1,10.58013885]
[1770478031717,10.09704564,2045.7,2044.5,9.74938976]
[1770478032311,10.10085599,2045.7,2044.5,9.74938976]
[1770478035218,12.10964767,2045.7,2044.3,9.74938976]
[1770478035520,10.09704564,2045.6,2044.3,9.74938976]
[1770478035712,10.09704564,2045.5,2044.3,9.74938976]
[1770478036111,10.09704564,2045.5,2044.1,9.75383452]
[1770478042024,10.09704564,2045.2,2044.1,9.75383452]
[1770478042920,10.09704564,2044.8,2043.9,20.15385577]
[1770478043324,10.09704564,2044.8,2043.9,10.40446601]
[1770478044015,10.09704564,2044.8,2043.9,9.75359392]
[1770478045018,10.09704564,2044.8,2043.9,0.00420416]
[1770478045220,0.00572267,2044.0,2043.9,0.00261872]
[1770478045524,10.09704564,2044.6,2043.9,9.75200848]
[1770478046224,10.10212628,2044.6,2043.9,0.00261872]
[1770478046626,10.10212628,2044.6,2043.9,9.75200848]
[1770478047324,10.10212628,2044.6,2043.9,0.00261872]
[1770478047624,12.11519424,2044.6,2043.9,0.00261872]
[1770478048127,12.11519424,2044.6,2043.4,9.74938976]
[1770478048128,10.09704564,2044.2,2043.4,9.74938976]
[1770478048327,2.0181486,2044.6,2043.6,9.74938976]
[1770478048328,10.10212628,2044.6,2043.6,9.74938976]
[1770478049227,10.10212628,2044.6,2043.6,9.75324776]
[1770478049927,0.00508064,2044.6,2043.6,9.75324776]
[1770478051731,0.00508064,2044.6,2043.6,11.76631572]
[1770478052931,0.00508064,2044.6,2043.6,12.01123572]
[1770478055937,0.00508064,2044.6,2043.8,9.18174068]
[1770478056635,9.26772812,2045.5,2044.4,9.18166068]
[1770478056838,9.26772812,2045.5,2044.4,8.93684068]
[1770478057433,9.27358374,2045.5,2044.4,8.93684068]
[1770478057939,9.26772812,2045.3,2044.4,8.93684068]
[1770478062040,0.00585562,2045.5,2044.4,8.93684068]
[1770478062342,0.00585562,2045.5,2044.7,8.93684068]
[1770478062645,9.27358374,2045.5,2044.7,8.93684068]
[1770478068048,9.27358374,2045.5,2044.5,8.93684068]
[1770478072964,11.2866517,2045.5,2044.3,8.93684068]
[1770478074063,9.26772812,2045.1,2044.0,8.93684068]
[1770478081658,15.1089333,2045.3,2044.3,8.93684068]
[1770478082059,9.26772812,2045.2,2044.3,8.93684068]
[1770478083163,9.26772812,2045.1,2044.3,8.93684068]
[1770478085365,9.26772812,2045.0,2044.3,8.93684068]
[1770478085666,8.47217971,2045.0,2044.3,8.93684068]
[1770478086967,8.47217971,2045.0,2044.1,8.16559761]
[1770478087757,8.68611956,2044.9,2044.1,8.16559761]
[1770478091972,8.69230526,2045.0,2044.1,8.16559761]
[1770478092373,8.69230526,2044.9,2044.1,8.16559761]
[1770478093472,14.53351044,2045.1,2044.1,8.16559761]
[1770478093672,14.53351044,2045.1,2044.1,10.17866557]
[1770478094466,7.2126172,2045.3,2044.5,8.63120259]
[1770478094467,5.84120518,2045.2,2044.5,8.63120259]
[1770478094665,17.42197747,2045.5,2044.5,8.63120259]
[1770478094666,8.69230526,2045.4,2044.5,8.63120259]
[1770478095572,8.69230526,2045.2,2044.5,8.63120259]
[1770478096581,8.69230526,2045.1,2044.5,8.63120259]
[1770478097371,14.53351044,2045.3,2044.5,8.63120259]
[1770478097572,8.69230526,2045.3,2044.5,8.63120259]
[1770478097775,5.84120518,2045.4,2044.7,10.64427055]
[1770478097967,8.69816088,2045.5,2044.7,8.63120259]
[1770478098466,8.69230526,2045.4,2044.7,8.63120259]
[1770478100476,8.69230526,2045.2,2044.5,8.63120259]
[1770478102171,5.84120518,2045.3,2044.5,8.63120259]
[1770478102574,8.69230526,2045.3,2044.5,8.63120259]
[1770478103270,8.69230526,2045.2,2044.5,8.63120259]
[1770478103973,8.69230526,2045.1,2044.3,8.63120259]
[1770478105483,7.89676398,2045.1,2044.3,8.63120259]
[1770478105679,8.69230526,2045.0,2044.3,8.63120259]
[1770478107675,8.69230526,2045.0,2043.8,4.52733097]
[1770478107676,8.69230526,2044.8,2044.1,8.63120259]
[1770478107870,8.69230526,2044.7,2043.8,8.63120259]
[1770478108072,8.69230526,2044.6,2043.8,8.63120259]
[1770478108782,8.69230526,2044.4,2043.6,8.63506059]
[1770478109284,14.53351044,2044.6,2043.6,8.63506059]
[1770478109782,8.69230526,2044.5,2043.6,8.63506059]
[1770478109986,5.84120518,2044.6,2043.7,0.24491]
[1770478110281,14.53351044,2044.9,2043.8,8.87610259]
[1770478110479,8.69230526,2044.9,2043.8,8.87610259]
[1770478111482,8.69230526,2044.8,2043.8,8.87610259]
[1770478111680,8.69230526,2044.7,2043.8,8.63120259]
[1770478112986,8.69230526,2044.6,2043.8,8.63120259]
[1770478113887,8.69230526,2044.6,2043.6,8.63506059]
[1770478114081,8.69230526,2044.4,2043.6,8.63506059]
[1770478115986,8.69230526,2044.4,2043.6,0.003858]
[1770478116186,8.69230526,2044.4,2043.6,7.89285747]
[1770478116984,8.27575122,2044.3,2043.6,7.89285747]
[1770478117690,8.27575122,2044.3,2043.6,0.003858]
[1770478117988,8.27575122,2044.3,2043.6,7.89285747]
[1770478118188,8.27575122,2044.3,2043.6,0.003858]
[1770478118389,8.27575122,2044.3,2043.2,7.88899947]
[1770478118390,8.27575122,2044.2,2043.2,7.88899947]
[1770478118589,8.27575122,2044.1,2043.2,7.88899947]
[1770478118991,8.27575122,2044.1,2043.2,8.20556712]
[1770478119494,8.27575122,2044.1,2043.2,7.89505959]
[1770478120591,14.1169564,2044.1,2043.2,0.00606012]
[1770478120884,8.27575122,2044.0,2043.2,7.89505959]
[1770478121085,8.28057217,2044.0,2043.2,7.89505959]
[1770478121891,0.00482095,2044.0,2043.2,7.89505959]
[1770478122092,8.27575122,2044.5,2043.4,7.88899947]
[1770478123189,8.27929283,2044.5,2043.4,7.88899947]
[1770478124894,0.00354161,2044.5,2043.5,7.88899947]
[1770478125495,0.00354161,2044.5,2043.5,8.13393947]
[1770478126197,8.27929283,2044.5,2043.5,8.13393947]
[1770478126590,8.27929283,2044.5,2043.2,7.89505959]
[1770478127195,8.27929283,2044.5,2043.3,8.13395947]
[1770478127396,0.00354161,2044.5,2043.6,7.88899947]
[1770478127898,8.27575122,2044.9,2043.6,7.88899947]
[1770478128993,8.27957984,2044.9,2043.7,7.88899947]
[1770478129388,0.00382862,2044.9,2044.0,2.25640622]
[1770478129589,8.27575122,2045.3,2044.1,7.88899947]
[1770478130801,8.2808606,2045.3,2044.1,7.88899947]
[1770478131599,8.2808606,2045.3,2044.1,8.13383947]
[1770478132196,0.00510938,2045.3,2044.6,7.88899947]
[1770478132396,8.27575122,2045.9,2044.6,8.13377947]
[1770478133395,8.28007986,2045.9,2044.6,8.13377947]
[1770478133698,8.27575122,2045.8,2044.6,7.88899947]
[1770478133997,8.27575122,2045.7,2044.6,7.88899947]
[1770478137193,8.27575122,2045.7,2044.1,7.88899947]
[1770478137498,8.27575122,2045.6,2044.1,7.88899947]
[1770478137703,8.27575122,2045.3,2044.1,7.88899947]
[1770478138802,8.27575122,2045.3,2044.1,8.13383947]
[1770478139005,5.84232805,2045.9,2044.1,8.13383947]
[1770478139006,8.27575122,2045.8,2044.2,7.88899947]
[1770478141603,5.84232805,2045.9,2045.0,7.88899947]
[1770478141604,0.00432864,2045.9,2045.0,7.88899947]
[1770478141799,14.11375063,2046.8,2045.8,7.88899947]
[1770478142005,8.27575122,2046.8,2045.2,7.88899947]
[1770478142806,8.27966787,2046.8,2045.2,7.89279591]
[1770478149011,8.27966787,2046.8,2045.3,7.25065768]
[1770478157225,7.77452877,2046.7,2045.3,7.25065768]
[1770478157515,0.00391665,2046.8,2045.7,7.24234481]
[1770478158025,7.77844542,2046.8,2045.7,7.48698481]
[1770478158414,0.00391665,2046.8,2045.7,7.48698481]
[1770478158614,7.77452877,2047.2,2045.7,7.48698481]
[1770478159016,5.83799941,2047.5,2046.1,7.24234481]
[1770478159017,7.77452877,2047.5,2046.1,7.24234481]
[1770478159618,7.7803226,2047.5,2046.1,7.24234481]
[1770478162526,7.7803226,2047.5,2046.1,7.8052957]
[1770478163323,7.7803226,2047.5,2046.1,7.5606957]
[1770478163827,7.77452877,2047.4,2046.1,7.5606957]
[1770478164626,7.77452877,2047.4,2046.1,0.31835089]
[1770478164821,7.77452877,2047.3,2046.1,7.24234481]
[1770478166418,7.77452877,2047.3,2046.1,0.31024205]
[1770478166630,7.77452877,2047.3,2046.1,7.24234481]
[1770478167129,7.77452877,2047.3,2046.1,0.31515672]
[1770478167325,7.84955563,2047.4,2046.0,7.24234481]
[1770478167326,7.77452877,2047.2,2046.0,7.24234481]
[1770478167529,7.77452877,2047.1,2046.0,7.24234481]
[1770478169324,7.77452877,2047.1,2046.0,7.55110098]
[1770478170432,7.77452877,2047.1,2046.0,7.24234481]
[1770478170636,7.77452877,2046.8,2045.7,7.24234481]
[1770478171320,7.77452877,2046.8,2045.7,7.55019554]
[1770478171519,7.77452877,2046.7,2045.7,7.55019554]
[1770478173330,7.77452877,2046.5,2045.3,7.24234481]
[1770478174932,7.77452877,2046.5,2045.6,7.24234481]
[1770478175132,13.61252818,2046.9,2045.8,2.00807883]
[1770478175335,7.77452877,2046.9,2045.9,7.24234481]
[1770478182142,12.89315684,2047.1,2045.9,7.24234481]
[1770478182337,7.05515743,2047.1,2045.9,7.24234481]
[1770478185937,7.05515743,2047.1,2046.2,7.3493288]
[1770478186532,12.89315684,2047.3,2046.2,7.3493288]
[1770478186732,7.05515743,2047.2,2046.2,7.5939188]
[1770478189143,7.05515743,2047.2,2046.2,7.3493288]
[1770478191248,7.05515743,2047.1,2046.2,7.3493288]
[1770478193249,7.05515743,2047.0,2046.2,7.3493288]
[1770478193839,7.05515743,2047.0,2046.0,7.3493288]
[1770478194651,7.05515743,2047.2,2046.2,7.3493288]
[1770478194839,7.05515743,2047.1,2046.2,7.3493288]
[1770478200049,5.83799941,2047.2,2046.2,7.5939188]
[1770478200253,7.05515743,2047.3,2046.4,7.3493288]
[1770478201656,0.00579383,2047.5,2046.7,7.3493288]
[1770478201850,0.00579383,2047.5,2046.8,0.24451]
[1770478202056,6.12244431,2048.0,2047.3,7.3493288]
[1770478202259,6.12244431,2048.0,2047.1,7.3493288]
[1770478203150,7.05515743,2047.9,2046.8,7.3493288]
[1770478203354,0.00588243,2048.0,2047.3,7.3493288]
[1770478203757,7.05515743,2048.2,2047.2,2.00807883]
[1770478203758,7.05515743,2048.4,2047.6,7.3493288]
[1770478204160,7.05515743,2048.5,2047.6,7.3493288]
[1770478204758,7.05872058,2048.5,2047.6,7.3493288]
[1770478205663,7.05872058,2048.5,2047.2,2.00807883]
[1770478205854,7.05872058,2048.5,2047.0,2.87026267]
[1770478205855,6.71626498,2047.8,2046.8,7.3493288]
[1770478206460,6.71626498,2047.7,2046.8,7.3493288]
[1770478210361,6.71626498,2048.1,2047.1,7.19076033]
[1770478211363,6.8524605,2048.0,2047.1,7.19076033]
[1770478212961,6.8524605,2048.0,2046.8,6.73696782]
[1770478213358,6.8524605,2047.9,2046.8,6.73696782]
[1770478213562,12.68390835,2047.8,2046.7,0.00428879]
[1770478213762,12.68390835,2047.6,2046.7,0.00428879]
[1770478213963,6.8524605,2047.5,2046.7,6.74125661]
[1770478214265,6.8524605,2047.3,2046.4,6.73696782]
[1770478214666,6.8524605,2047.2,2045.9,6.73696782]
[1770478214871,6.8524605,2047.0,2045.7,6.73696782]
[1770478215074,6.8524605,2047.0,2046.0,6.73696782]
[1770478215075,6.8524605,2046.8,2046.0,6.73696782]
[1770478215267,6.8524605,2046.8,2046.0,6.74138766]
[1770478215467,6.85642508,2046.8,2046.0,0.00441984]
[1770478215972,6.85642508,2046.8,2046.1,6.73696782]
[1770478216870,6.8524605,2046.5,2045.6,6.73696782]
[1770478217174,6.8524605,2046.7,2045.8,6.73696782]
[1770478217872,6.8524605,2046.7,2045.8,0.00480766]
[1770478218079,6.8524605,2046.6,2045.8,0.00480766]
[1770478218376,6.8524605,2046.4,2045.5,6.73696782]
[1770478218771,6.8524605,2046.4,2045.3,6.73696782]
[1770478218973,6.8524605,2046.3,2045.3,6.73696782]
[1770478219576,6.8524605,2046.1,2045.3,0.00593361]
[1770478219778,6.8524605,2046.0,2044.9,6.73696782]
[1770478220075,6.8524605,2045.9,2044.9,6.73696782]
[1770478220272,6.8524605,2045.8,2044.9,6.73696782]
[1770478220781,6.8524605,2045.6,2044.5,6.73696782]
[1770478221374,5.83144785,2045.8,2044.5,7.04717274]
[1770478221580,6.8524605,2045.8,2044.7,6.73696782]
[1770478221779,6.8524605,2045.8,2044.7,6.74217656]
[1770478222276,6.8524605,2045.8,2044.7,0.00520874]
[1770478223682,6.8524605,2045.5,2044.4,6.73696782]
[1770478224276,6.8524605,2045.9,2045.0,6.73696782]
[1770478224474,6.8524605,2046.4,2045.0,6.73696782]
[1770478224681,6.8524605,2046.4,2045.0,6.74291336]
[1770478224876,6.8524605,2046.4,2045.2,2.00807883]
[1770478225076,6.8524605,2046.4,2045.3,6.73696782]
[1770478228879,6.8524605,2046.2,2045.1,6.73696782]
[1770478236493,6.8524605,2046.2,2045.0,0.00594554]
[1770478236788,6.8524605,2046.2,2045.0,6.70178888]
[1770478240185,6.93455511,2046.7,2045.4,6.69584334]
[1770478243587,6.93455511,2046.5,2045.4,6.69584334]
[1770478243886,6.93455511,2046.3,2045.2,6.69584334]
[1770478244089,6.93455511,2046.2,2045.2,6.69584334]
[1770478245592,6.93455511,2046.4,2045.2,6.69584334]
[1770478247496,6.93455511,2046.3,2045.2,6.69584334]
[1770478251087,6.93455511,2046.2,2045.2,6.69584334]
[1770478251984,6.93455511,2046.1,2045.2,6.69584334]
[1770478252991,12.76600296,2046.3,2045.2,6.69584334]
[1770478253790,5.83144785,2046.6,2045.5,6.69584334]
[1770478253990,12.76600296,2046.6,2045.5,6.69584334]
[1770478254492,6.93455511,2046.6,2045.6,6.69584334]
[1770478255794,5.83144785,2046.7,2045.6,6.69584334]
[1770478255795,6.93455511,2046.5,2045.6,6.69584334]
[1770478257497,12.76600296,2046.7,2045.6,6.69584334]
[1770478258496,6.93455511,2046.6,2045.6,6.69584334]
[1770478258899,6.93851969,2046.8,2045.7,6.94049334]
[1770478259191,6.93851969,2046.8,2045.8,6.69584334]
[1770478260995,3.76612425,2047.1,2046.3,6.69584334]
[1770478261195,6.93455511,2047.4,2046.3,6.69584334]
[1770478262499,6.93882394,2047.4,2046.3,6.69584334]
[1770478264091,6.93882394,2047.4,2046.3,6.94041334]
[1770478264490,0.24438,2048.0,2046.0,2.87026267]
[1770478264491,6.93455511,2047.6,2046.8,6.69584334]
[1770478264704,6.93455511,2047.8,2046.8,6.69584334]
[1770478265393,6.93455511,2047.8,2046.8,7.00647011]
[1770478265601,6.93843983,2047.8,2046.8,7.01060207]
[1770478265800,0.00388472,2047.8,2046.8,7.01060207]
[1770478266097,6.56580122,2048.0,2047.0,6.96741594]
[1770478266298,6.56580122,2048.4,2047.3,6.96741594]
[1770478267101,6.56580122,2048.4,2047.0,2.00951907]
[1770478267102,0.00394559,2048.4,2047.5,6.96741594]
[1770478268303,6.56974681,2048.4,2047.5,6.96741594]
[1770478268498,0.00394559,2048.4,2047.5,6.96741594]
[1770478268896,6.56580122,2048.8,2047.7,6.96741594]
[1770478269104,6.56580122,2049.0,2047.7,7.21182594]
[1770478269298,6.56580122,2049.0,2047.9,6.96741594]
[1770478269597,6.56580122,2049.0,2047.9,7.21179594]
[1770478269804,6.56580122,2049.0,2047.9,6.96741594]
[1770478270099,6.57020029,2049.0,2047.9,6.96741594]
[1770478270301,6.57020029,2049.0,2047.5,6.96915833]
[1770478270504,6.80047812,2048.6,2046.9,6.96915833]
[1770478272195,6.80047812,2048.4,2046.9,6.96915833]
[1770478273006,6.80047812,2048.2,2046.8,7.28391706]
[1770478275006,7.04486812,2047.9,2046.8,0.00413196]
[1770478275208,7.04486812,2047.9,2046.4,6.96915833]
[1770478275395,6.80047812,2047.5,2046.2,6.96915833]
[1770478275600,6.80047812,2047.5,2045.4,2.00951907]
[1770478275601,6.80047812,2047.5,2045.9,6.96915833]
[1770478275801,6.80047812,2047.3,2045.9,6.96915833]
[1770478276209,6.80487436,2047.3,2045.9,6.97394485]
[1770478278205,6.80047812,2047.1,2045.9,0.00478652]
[1770478278506,6.80047812,2047.1,2045.9,6.97394485]
[1770478280505,7.24950527,2047.9,2045.9,6.97394485]
[1770478280711,6.80047812,2048.8,2047.5,6.96915833]
[1770478280896,8.72381659,2049.3,2047.4,2.00951907]
[1770478280897,1.28827131,2049.4,2047.9,6.96915833]
[1770478281102,6.80047812,2049.3,2047.9,6.96915833]
[1770478281302,6.80047812,2049.9,2047.9,6.96915833]
[1770478281501,6.80515265,2049.9,2047.9,6.9749926]
[1770478282010,7.04930265,2049.9,2047.9,6.9749926]
[1770478282201,12.84348272,2049.9,2047.9,6.9749926]
[1770478282402,6.80047812,2049.6,2047.9,6.9749926]
[1770478282907,6.80047812,2049.6,2048.2,6.96915833]
[1770478284206,6.80047812,2049.8,2048.2,6.96915833]
[1770478287107,6.80515265,2049.9,2048.2,6.96915833]
[1770478287611,6.80515265,2049.9,2048.2,7.21350833]
[1770478289408,6.80515265,2049.9,2048.5,2.00206585]